[Event "Late-Titled-Tuesday-Blitz-February-20-2024"]
[Site "Chess.com"]
[Date "2024.02.20"]
[Round "1"]
[White "Atanejhad"]
[Black "GMRAVEN_ON_YOUTUBE"]
[Result "0-1"]
[WhiteElo "2402"]
[BlackElo "2754"]
[TimeControl "180+1"]
[EndTime "14:08:46 PST"]
[Termination "GMRAVEN_ON_YOUTUBE won by resignation"]

1. d4 {[%clk 0:02:55.2]} 1... f5 {[%clk 0:02:58.7]} 2. b3 {[%clk 0:02:51.9]}
2... Nf6 {[%clk 0:02:57.5]} 3. Bb2 {[%clk 0:02:52.4]} 3... g6 {[%clk 0:02:57.6]}
4. Nd2 {[%clk 0:02:52.7]} 4... Bg7 {[%clk 0:02:53.9]} 5. e3 {[%clk 0:02:53.1]}
5... O-O {[%clk 0:02:54.2]} 6. c4 {[%clk 0:02:53.2]} 6... d6 {[%clk 0:02:53.3]}
7. Ngf3 {[%clk 0:02:53.5]} 7... Qe8 {[%clk 0:02:39.6]} 8. d5 {[%clk 0:02:50.3]}
8... a5 {[%clk 0:02:37.2]} 9. Bd3 {[%clk 0:02:45.6]} 9... Na6 {[%clk 0:02:36.3]}
10. O-O {[%clk 0:02:43.9]} 10... Nc5 {[%clk 0:02:31]} 11. Bc2 {[%clk 0:02:43.9]}
11... Nh5 {[%clk 0:02:19.8]} 12. Bxg7 {[%clk 0:02:41]} 12... Nxg7 {[%clk
0:02:19.8]} 13. Nd4 {[%clk 0:02:38.4]} 13... e5 {[%clk 0:02:19.5]} 14. dxe6
{[%clk 0:02:36.6]} 14... Ngxe6 {[%clk 0:02:18.9]} 15. N2f3 {[%clk 0:02:35.2]}
15... f4 {[%clk 0:02:17.4]} 16. Re1 {[%clk 0:02:29.4]} 16... Qf7 {[%clk
0:02:10.3]} 17. Qd2 {[%clk 0:02:17.9]} 17... fxe3 {[%clk 0:02:01.1]} 18. Rxe3
{[%clk 0:02:16.1]} 18... Nf4 {[%clk 0:01:59.6]} 19. Rae1 {[%clk 0:02:01]} 19...
Qf6 {[%clk 0:01:53.9]} 20. Nb5 {[%clk 0:01:52.7]} 20... Nce6 {[%clk 0:01:47.8]}
21. Qc3 {[%clk 0:01:45]} 21... Bd7 {[%clk 0:01:42.8]} 22. Qxf6 {[%clk
0:01:43.2]} 22... Rxf6 {[%clk 0:01:43.7]} 23. Nbd4 {[%clk 0:01:39.5]} 23... Raf8
{[%clk 0:01:41]} 24. Nxe6 {[%clk 0:01:30]} 24... Bxe6 {[%clk 0:01:37.1]} 25. Nd4
{[%clk 0:01:22.6]} 25... Bd7 {[%clk 0:01:26.7]} 26. Be4 {[%clk 0:01:17.1]} 26...
c6 {[%clk 0:01:22.8]} 27. f3 {[%clk 0:01:14.3]} 27... Kg7 {[%clk 0:01:00.9]} 28.
Ne2 {[%clk 0:01:01.6]} 28... Ne6 {[%clk 0:00:57.2]} 29. Nc3 {[%clk 0:01:00.1]}
29... Nc5 {[%clk 0:00:56.4]} 30. Bc2 {[%clk 0:00:59.3]} 30... R6f7 {[%clk
0:00:55.7]} 31. a3 {[%clk 0:00:54.9]} 31... Ra8 {[%clk 0:00:49.2]} 32. Re7
{[%clk 0:00:52.3]} 32... Kf8 {[%clk 0:00:48]} 33. Rxf7+ {[%clk 0:00:51.6]} 33...
Kxf7 {[%clk 0:00:48.9]} 34. Kf2 {[%clk 0:00:51.8]} 34... a4 {[%clk 0:00:46.1]}
35. b4 {[%clk 0:00:51.4]} 35... Nb3 {[%clk 0:00:46.6]} 36. Rd1 {[%clk
0:00:47.6]} 36... Ke7 {[%clk 0:00:40]} 37. Ne4 {[%clk 0:00:45.7]} 37... Bf5
{[%clk 0:00:40.3]} 38. Re1 {[%clk 0:00:35.8]} 38... Bxe4 {[%clk 0:00:22.6]} 39.
Rxe4+ {[%clk 0:00:34.6]} 39... Kd7 {[%clk 0:00:22.7]} 40. Rf4 {[%clk 0:00:34.3]}
40... Ke7 {[%clk 0:00:22.8]} 41. Re4+ {[%clk 0:00:32.3]} 41... Kd7 {[%clk
0:00:20.9]} 42. Rh4 {[%clk 0:00:32]} 42... Rh8 {[%clk 0:00:09.6]} 43. Bxg6
{[%clk 0:00:30.3]} 43... h6 {[%clk 0:00:09.7]} 44. Rf4 {[%clk 0:00:29]} 44...
Ke6 {[%clk 0:00:09.8]} 45. Bc2 {[%clk 0:00:23.5]} 45... Ke5 {[%clk 0:00:08.5]}
46. Re4+ {[%clk 0:00:22.8]} 46... Kf6 {[%clk 0:00:08.3]} 47. Bxb3 {[%clk
0:00:22.1]} 47... axb3 {[%clk 0:00:09.2]} 48. Re3 {[%clk 0:00:22.4]} 48... b2
{[%clk 0:00:09]} 49. Rb3 {[%clk 0:00:23]} 49... Ra8 {[%clk 0:00:09.8]} 50. Rxb2
{[%clk 0:00:23.1]} 50... Rxa3 {[%clk 0:00:10.5]} 51. c5 {[%clk 0:00:19.3]} 51...
d5 {[%clk 0:00:10]} 52. g4 {[%clk 0:00:18.7]} 52... Ke5 {[%clk 0:00:09.8]} 53.
Kg3 {[%clk 0:00:19.1]} 53... Re3 {[%clk 0:00:08.5]} 54. Kf2 {[%clk 0:00:18.4]}
54... Kf4 {[%clk 0:00:08.3]} 55. Kg2 {[%clk 0:00:17.7]} 55... Rxf3 {[%clk
0:00:07]} 56. h3 {[%clk 0:00:17.6]} 56... Rg3+ {[%clk 0:00:07.1]} 57. Kh2 {[%clk
0:00:17.1]} 57... d4 {[%clk 0:00:07.2]} 58. Rf2+ {[%clk 0:00:17]} 58... Rf3
{[%clk 0:00:07.5]} 59. Rd2 {[%clk 0:00:15.3]} 59... d3 {[%clk 0:00:07.7]} 60.
Rd1 {[%clk 0:00:15.9]} 60... Ke3 {[%clk 0:00:06.6]} 61. Kg2 {[%clk 0:00:16.5]}
61... Rf2+ {[%clk 0:00:06.9]} 62. Kg3 {[%clk 0:00:17.2]} 62... d2 {[%clk
0:00:07.8]} 63. h4 {[%clk 0:00:16.4]} 63... Re2 {[%clk 0:00:08.2]} 64. g5 {[%clk
0:00:16.1]} 64... hxg5 {[%clk 0:00:08.2]} 65. hxg5 {[%clk 0:00:17]} 65... Re1
{[%clk 0:00:08.4]} 66. Rxd2 {[%clk 0:00:17.2]} 66... Kxd2 {[%clk 0:00:09.3]} 67.
Kf4 {[%clk 0:00:16.5]} 67... Rg1 {[%clk 0:00:09.1]} 68. Ke5 {[%clk 0:00:16]}
68... Rxg5+ {[%clk 0:00:08.2]} 69. Kd6 {[%clk 0:00:16.9]} 69... Rg7 {[%clk
0:00:08.4]} 0-1

[Event "Late-Titled-Tuesday-Blitz-February-20-2024"]
[Site "Chess.com"]
[Date "2024.02.20"]
[Round "1"]
[White "alexrustemov"]
[Black "Bilan_Danila"]
[Result "1-0"]
[WhiteElo "2897"]
[BlackElo "2461"]
[TimeControl "180+1"]
[EndTime "14:08:53 PST"]
[Termination "alexrustemov won by checkmate"]

1. d4 {[%clk 0:03:00.9]} 1... d5 {[%clk 0:02:58.8]} 2. c4 {[%clk 0:03:01.2]}
2... c6 {[%clk 0:02:59]} 3. Nc3 {[%clk 0:03:01.5]} 3... Nf6 {[%clk 0:02:59.2]}
4. e3 {[%clk 0:03:01.9]} 4... e6 {[%clk 0:02:59.3]} 5. Nf3 {[%clk 0:03:00.4]}
5... Nbd7 {[%clk 0:02:59.4]} 6. Qc2 {[%clk 0:03:00.8]} 6... Bd6 {[%clk
0:02:59.4]} 7. Bd2 {[%clk 0:03:01.3]} 7... b6 {[%clk 0:02:51.5]} 8. O-O-O {[%clk
0:03:00.6]} 8... Bb7 {[%clk 0:02:50.9]} 9. Kb1 {[%clk 0:02:59.7]} 9... Qe7
{[%clk 0:02:46]} 10. Bd3 {[%clk 0:02:57.7]} 10... dxc4 {[%clk 0:02:36.2]} 11.
Bxc4 {[%clk 0:02:57.3]} 11... c5 {[%clk 0:02:36.4]} 12. Nb5 {[%clk 0:02:49.6]}
12... Bb8 {[%clk 0:02:22.3]} 13. dxc5 {[%clk 0:02:45.7]} 13... Nxc5 {[%clk
0:02:22]} 14. Nc3 {[%clk 0:02:38.5]} 14... Nfe4 {[%clk 0:02:16.2]} 15. Bb5+
{[%clk 0:02:31]} 15... Kf8 {[%clk 0:02:07.9]} 16. Rhf1 {[%clk 0:02:11.7]} 16...
Nxd2+ {[%clk 0:01:57.9]} 17. Qxd2 {[%clk 0:02:06.1]} 17... Bc7 {[%clk
0:01:57.4]} 18. Qe2 {[%clk 0:01:53.7]} 18... g6 {[%clk 0:01:50.6]} 19. Ka1
{[%clk 0:01:49]} 19... Kg7 {[%clk 0:01:48.9]} 20. Nd4 {[%clk 0:01:44.4]} 20...
a6 {[%clk 0:01:37.8]} 21. Bc6 {[%clk 0:01:43.9]} 21... Be5 {[%clk 0:01:32]} 22.
Bxb7 {[%clk 0:01:41.5]} 22... Qxb7 {[%clk 0:01:32.9]} 23. h3 {[%clk 0:01:32.5]}
23... Rhd8 {[%clk 0:01:27.9]} 24. f3 {[%clk 0:01:30.2]} 24... Rd7 {[%clk
0:01:22.9]} 25. Rd2 {[%clk 0:01:29.1]} 25... Rad8 {[%clk 0:01:23.3]} 26. Rfd1
{[%clk 0:01:29]} 26... b5 {[%clk 0:01:18.7]} 27. Nb1 {[%clk 0:01:22.9]} 27...
Na4 {[%clk 0:01:02.7]} 28. g4 {[%clk 0:01:13.1]} 28... Nb6 {[%clk 0:00:58.1]}
29. Na3 {[%clk 0:01:08.3]} 29... Bxd4 {[%clk 0:00:42.4]} 30. Rxd4 {[%clk
0:01:02.4]} 30... Rxd4 {[%clk 0:00:42.3]} 31. Rxd4 {[%clk 0:01:00.9]} 31... Rxd4
{[%clk 0:00:41.9]} 32. exd4 {[%clk 0:01:01.6]} 32... Qd5 {[%clk 0:00:41.8]} 33.
Nc2 {[%clk 0:00:55.3]} 33... Nc4 {[%clk 0:00:36.1]} 34. b3 {[%clk 0:00:52.6]}
34... Na5 {[%clk 0:00:30.4]} 35. Qe5+ {[%clk 0:00:51.8]} 35... Qxe5 {[%clk
0:00:27]} 36. dxe5 {[%clk 0:00:52.7]} 36... Nc6 {[%clk 0:00:26.4]} 37. f4 {[%clk
0:00:51]} 37... g5 {[%clk 0:00:21.7]} 38. fxg5 {[%clk 0:00:49.4]} 38... Nxe5
{[%clk 0:00:22.4]} 39. Kb2 {[%clk 0:00:41.5]} 39... Kg6 {[%clk 0:00:22.2]} 40.
Kc3 {[%clk 0:00:40.1]} 40... Kxg5 {[%clk 0:00:21.4]} 41. Kd4 {[%clk 0:00:40.1]}
41... Kf4 {[%clk 0:00:20.4]} 42. Kc5 {[%clk 0:00:39.9]} 42... Nd3+ {[%clk
0:00:20.3]} 43. Kb6 {[%clk 0:00:39.9]} 43... b4 {[%clk 0:00:19.4]} 44. Kxa6
{[%clk 0:00:39.6]} 44... e5 {[%clk 0:00:20]} 45. Kb5 {[%clk 0:00:39.9]} 45... e4
{[%clk 0:00:20.6]} 46. Kc4 {[%clk 0:00:40.1]} 46... h6 {[%clk 0:00:18.7]} 47. a4
{[%clk 0:00:37.3]} 47... bxa3 {[%clk 0:00:16.2]} 48. Nxa3 {[%clk 0:00:37.6]}
48... Ne5+ {[%clk 0:00:16.6]} 49. Kc3 {[%clk 0:00:36]} 49... e3 {[%clk
0:00:17.2]} 50. Nc2 {[%clk 0:00:35.7]} 50... Kf3 {[%clk 0:00:17.8]} 51. b4
{[%clk 0:00:34.2]} 51... e2 {[%clk 0:00:17.9]} 52. b5 {[%clk 0:00:33]} 52... Kf2
{[%clk 0:00:17.3]} 53. Kd4 {[%clk 0:00:30.3]} 53... Nf3+ {[%clk 0:00:16.1]} 54.
Kd5 {[%clk 0:00:25.5]} 54... Ne1 {[%clk 0:00:15.8]} 55. Nd4 {[%clk 0:00:25.3]}
55... Nd3 {[%clk 0:00:14.9]} 56. Nxe2 {[%clk 0:00:24.6]} 56... Kxe2 {[%clk
0:00:15.1]} 57. b6 {[%clk 0:00:24.7]} 57... Nb4+ {[%clk 0:00:13.4]} 58. Ke4
{[%clk 0:00:24.5]} 58... Kf2 {[%clk 0:00:11.5]} 59. b7 {[%clk 0:00:23.2]} 59...
Na6 {[%clk 0:00:10.9]} 60. Kf4 {[%clk 0:00:22.3]} 60... Kg2 {[%clk 0:00:11]} 61.
h4 {[%clk 0:00:22.5]} 61... Kh3 {[%clk 0:00:11.6]} 62. h5 {[%clk 0:00:19.7]}
62... Kh4 {[%clk 0:00:12.1]} 63. Kf5 {[%clk 0:00:19.8]} 63... Kg3 {[%clk
0:00:12.3]} 64. g5 {[%clk 0:00:19.9]} 64... hxg5 {[%clk 0:00:10.5]} 65. h6
{[%clk 0:00:20.3]} 65... g4 {[%clk 0:00:05.1]} 66. h7 {[%clk 0:00:20.3]} 66...
Kf3 {[%clk 0:00:05.8]} 67. h8=Q {[%clk 0:00:20.2]} 67... g3 {[%clk 0:00:06.7]}
68. Qc3+ {[%clk 0:00:19.6]} 68... Kg2 {[%clk 0:00:06.4]} 69. Qd2+ {[%clk
0:00:19.1]} 69... Kh3 {[%clk 0:00:06.7]} 70. Qd3 {[%clk 0:00:16.9]} 70... Nc5
{[%clk 0:00:05]} 71. Qf3 {[%clk 0:00:15.4]} 71... Nxb7 {[%clk 0:00:04.6]} 72.
Qh1# {[%clk 0:00:15]} 1-0

[Event "Late-Titled-Tuesday-Blitz-February-20-2024"]
[Site "Chess.com"]
[Date "2024.02.20"]
[Round "1"]
[White "Statham_01"]
[Black "DraningWaterHi"]
[Result "1/2-1/2"]
[WhiteElo "2578"]
[BlackElo "2243"]
[TimeControl "180+1"]
[EndTime "14:09:10 PST"]
[Termination "Game drawn - insufficient material"]

1. e4 {[%clk 0:02:59.5]} 1... e5 {[%clk 0:02:59]} 2. Nf3 {[%clk 0:02:59.9]} 2...
Nc6 {[%clk 0:02:58.7]} 3. c3 {[%clk 0:02:59.8]} 3... Nf6 {[%clk 0:02:57]} 4. d4
{[%clk 0:02:59.4]} 4... d6 {[%clk 0:02:45.4]} 5. dxe5 {[%clk 0:02:53.7]} 5...
Nxe5 {[%clk 0:02:44.4]} 6. Nxe5 {[%clk 0:02:53]} 6... dxe5 {[%clk 0:02:45.3]} 7.
Qxd8+ {[%clk 0:02:53.3]} 7... Kxd8 {[%clk 0:02:46.2]} 8. f3 {[%clk 0:02:52.9]}
8... Bd6 {[%clk 0:02:45]} 9. Be3 {[%clk 0:02:52.8]} 9... Ke7 {[%clk 0:02:43.2]}
10. Nd2 {[%clk 0:02:53.4]} 10... Be6 {[%clk 0:02:43.3]} 11. Bc4 {[%clk
0:02:53.7]} 11... Rhd8 {[%clk 0:02:40.6]} 12. Bxe6 {[%clk 0:02:53.8]} 12... Kxe6
{[%clk 0:02:39.6]} 13. O-O-O {[%clk 0:02:54]} 13... Nd7 {[%clk 0:02:38]} 14. Nc4
{[%clk 0:02:33.7]} 14... Nb6 {[%clk 0:02:36.9]} 15. Bxb6 {[%clk 0:02:27.2]}
15... axb6 {[%clk 0:02:37.8]} 16. a3 {[%clk 0:02:23.8]} 16... Bc5 {[%clk
0:02:35.7]} 17. Kc2 {[%clk 0:02:19.8]} 17... f6 {[%clk 0:02:32.5]} 18. b4 {[%clk
0:02:15]} 18... Be7 {[%clk 0:02:31.6]} 19. Kb3 {[%clk 0:02:10.5]} 19... h5
{[%clk 0:02:26]} 20. Ne3 {[%clk 0:02:06.3]} 20... c6 {[%clk 0:02:19.9]} 21. g3
{[%clk 0:01:45.2]} 21... b5 {[%clk 0:02:17.3]} 22. f4 {[%clk 0:01:37.4]} 22...
Bd6 {[%clk 0:02:13.9]} 23. f5+ {[%clk 0:01:29.5]} 23... Kf7 {[%clk 0:02:12.3]}
24. h3 {[%clk 0:01:27.6]} 24... Bc7 {[%clk 0:02:09.7]} 25. g4 {[%clk 0:01:26.5]}
25... Bb6 {[%clk 0:02:09]} 26. Ng2 {[%clk 0:01:25.9]} 26... hxg4 {[%clk
0:02:08.2]} 27. hxg4 {[%clk 0:01:23.8]} 27... Rxd1 {[%clk 0:02:08.1]} 28. Rxd1
{[%clk 0:01:24.7]} 28... Rd8 {[%clk 0:02:07.7]} 29. Rxd8 {[%clk 0:01:17.9]}
29... Bxd8 {[%clk 0:02:06.5]} 30. c4 {[%clk 0:01:03.4]} 30... bxc4+ {[%clk
0:02:03.7]} 31. Kxc4 {[%clk 0:01:04.3]} 31... Bb6 {[%clk 0:02:02.7]} 32. Ne1
{[%clk 0:01:02.1]} 32... Ke7 {[%clk 0:02:02.3]} 33. a4 {[%clk 0:01:00.3]} 33...
Kd7 {[%clk 0:01:59]} 34. Nd3 {[%clk 0:00:53]} 34... Kd6 {[%clk 0:01:50.9]} 35.
Nb2 {[%clk 0:00:42.5]} 35... Bd4 {[%clk 0:01:49.6]} 36. Nd3 {[%clk 0:00:38.4]}
36... Bg1 {[%clk 0:01:43.6]} 37. Nc1 {[%clk 0:00:30.6]} 37... Be3 {[%clk
0:01:42.1]} 38. Ne2 {[%clk 0:00:30.7]} 38... Bf2 {[%clk 0:01:41.1]} 39. a5
{[%clk 0:00:24.7]} 39... Be1 {[%clk 0:01:32.6]} 40. Ng1 {[%clk 0:00:19.9]} 40...
c5 {[%clk 0:01:15.2]} 41. bxc5+ {[%clk 0:00:16.1]} 41... Kc6 {[%clk 0:01:15.3]}
42. Ne2 {[%clk 0:00:10.7]} 42... Bxa5 {[%clk 0:01:15.1]} 43. Ng3 {[%clk
0:00:11.1]} 43... Bd8 {[%clk 0:01:05.2]} 44. Nh5 {[%clk 0:00:10.4]} 44... Be7
{[%clk 0:01:05.7]} 45. Nxg7 {[%clk 0:00:08.5]} 45... Bxc5 {[%clk 0:01:05.7]} 46.
Ne6 {[%clk 0:00:07.5]} 46... Be7 {[%clk 0:01:05.8]} 47. Ng7 {[%clk 0:00:04.4]}
47... b5+ {[%clk 0:01:05.3]} 48. Kc3 {[%clk 0:00:05]} 48... Kc5 {[%clk
0:01:03.9]} 49. Nh5 {[%clk 0:00:04.8]} 49... b4+ {[%clk 0:01:01.7]} 50. Kd3
{[%clk 0:00:05.4]} 50... Kb5 {[%clk 0:01:00.9]} 51. g5 {[%clk 0:00:04.8]} 51...
fxg5 {[%clk 0:01:01.2]} 52. f6 {[%clk 0:00:05.7]} 52... Bf8 {[%clk 0:00:59.1]}
53. f7 {[%clk 0:00:05.5]} 53... g4 {[%clk 0:00:58.4]} 54. Nf6 {[%clk 0:00:05.6]}
54... g3 {[%clk 0:00:57.9]} 55. Nd7 {[%clk 0:00:04.4]} 55... Be7 {[%clk
0:00:57.8]} 56. Nxe5 {[%clk 0:00:03.8]} 56... g2 {[%clk 0:00:57.7]} 57. Nf3
{[%clk 0:00:02.9]} 57... Ka4 {[%clk 0:00:55.4]} 58. e5 {[%clk 0:00:02.9]} 58...
Ka3 {[%clk 0:00:54.7]} 59. Ke2 {[%clk 0:00:02.5]} 59... b3 {[%clk 0:00:49.3]}
60. Kf2 {[%clk 0:00:02.6]} 60... Bb4 {[%clk 0:00:41.8]} 61. Kxg2 {[%clk
0:00:02.6]} 61... b2 {[%clk 0:00:42]} 62. Nd2 {[%clk 0:00:03.2]} 62... Ka2
{[%clk 0:00:38.2]} 63. Kf3 {[%clk 0:00:03.6]} 63... Bxd2 {[%clk 0:00:37]} 64.
f8=Q {[%clk 0:00:04.1]} 64... b1=Q {[%clk 0:00:37.4]} 65. Qa8+ {[%clk
0:00:03.7]} 65... Kb3 {[%clk 0:00:36.5]} 66. Qb7+ {[%clk 0:00:03.7]} 66... Bb4
{[%clk 0:00:36.5]} 67. Qd5+ {[%clk 0:00:03.3]} 67... Ka4 {[%clk 0:00:36]} 68.
Qa8+ {[%clk 0:00:03.4]} 68... Kb3 {[%clk 0:00:35.7]} 69. e6 {[%clk 0:00:03.7]}
69... Qf5+ {[%clk 0:00:35.2]} 70. Kg3 {[%clk 0:00:02.6]} 70... Qxe6 {[%clk
0:00:35.1]} 71. Kf3 {[%clk 0:00:02.9]} 71... Bc5 {[%clk 0:00:34.2]} 72. Qb7+
{[%clk 0:00:02.5]} 72... Kc4 {[%clk 0:00:34.1]} 73. Qa8 {[%clk 0:00:02.2]} 73...
Qe3+ {[%clk 0:00:33.8]} 74. Kg4 {[%clk 0:00:02.8]} 74... Qd4+ {[%clk 0:00:34]}
75. Kf5 {[%clk 0:00:03]} 75... Kd3 {[%clk 0:00:32.5]} 76. Qa6+ {[%clk
0:00:02.7]} 76... Ke3 {[%clk 0:00:32.5]} 77. Qc8 {[%clk 0:00:02.3]} 77... Qd5+
{[%clk 0:00:31.9]} 78. Kg6 {[%clk 0:00:02.7]} 78... Bd4 {[%clk 0:00:31.3]} 79.
Qf5 {[%clk 0:00:03]} 79... Qg8+ {[%clk 0:00:30.7]} 80. Kh5 {[%clk 0:00:03.6]}
80... Qh8+ {[%clk 0:00:30.2]} 81. Kg6 {[%clk 0:00:04.2]} 81... Qg7+ {[%clk
0:00:29.9]} 82. Kh5 {[%clk 0:00:04.8]} 82... Be5 {[%clk 0:00:29.9]} 83. Qg5+
{[%clk 0:00:05]} 83... Qxg5+ {[%clk 0:00:25.8]} 84. Kxg5 {[%clk 0:00:05.9]}
1/2-1/2

[Event "Late-Titled-Tuesday-Blitz-February-20-2024"]
[Site "Chess.com"]
[Date "2024.02.20"]
[Round "1"]
[White "Andrei_Skvortsov"]
[Black "Dzidzik2203"]
[Result "1/2-1/2"]
[WhiteElo "2687"]
[BlackElo "2382"]
[TimeControl "180+1"]
[EndTime "14:09:14 PST"]
[Termination "Game drawn - insufficient material"]

1. e4 {[%clk 0:03:00.9]} 1... c5 {[%clk 0:02:59]} 2. d4 {[%clk 0:03:00.6]} 2...
cxd4 {[%clk 0:02:55.9]} 3. Qxd4 {[%clk 0:03:01.5]} 3... Nc6 {[%clk 0:02:55.2]}
4. Qd3 {[%clk 0:03:02]} 4... Nf6 {[%clk 0:02:53.2]} 5. Nc3 {[%clk 0:03:02.4]}
5... e6 {[%clk 0:02:48.7]} 6. Bf4 {[%clk 0:03:01.9]} 6... d5 {[%clk 0:02:38.3]}
7. exd5 {[%clk 0:02:59.6]} 7... Nxd5 {[%clk 0:02:38]} 8. Nxd5 {[%clk 0:02:57.6]}
8... Qxd5 {[%clk 0:02:36.8]} 9. Qxd5 {[%clk 0:02:57.1]} 9... exd5 {[%clk
0:02:37.7]} 10. O-O-O {[%clk 0:02:57.3]} 10... Be6 {[%clk 0:02:33.6]} 11. Ne2
{[%clk 0:02:53.6]} 11... Bc5 {[%clk 0:02:32.1]} 12. Bg3 {[%clk 0:02:48.7]} 12...
O-O {[%clk 0:02:28.3]} 13. Nf4 {[%clk 0:02:47.9]} 13... Rad8 {[%clk 0:02:17.5]}
14. Kb1 {[%clk 0:02:35.6]} 14... Rfe8 {[%clk 0:02:02.7]} 15. Bb5 {[%clk
0:02:33.4]} 15... a6 {[%clk 0:01:51.9]} 16. Bxc6 {[%clk 0:02:29.9]} 16... bxc6
{[%clk 0:01:52.8]} 17. Nd3 {[%clk 0:02:29.9]} 17... Bf8 {[%clk 0:01:44.6]} 18.
Rhe1 {[%clk 0:02:23.9]} 18... Bf5 {[%clk 0:01:35.7]} 19. Ne5 {[%clk 0:02:21.8]}
19... Re6 {[%clk 0:01:31.2]} 20. Nf3 {[%clk 0:02:13.4]} 20... Bc5 {[%clk
0:01:20.5]} 21. Rxe6 {[%clk 0:02:13]} 21... fxe6 {[%clk 0:01:19.3]} 22. Ne5
{[%clk 0:02:11.7]} 22... Rc8 {[%clk 0:01:03.8]} 23. Kc1 {[%clk 0:02:00]} 23...
Be7 {[%clk 0:00:57.8]} 24. b3 {[%clk 0:01:57.7]} 24... c5 {[%clk 0:00:48.6]} 25.
c4 {[%clk 0:01:55.8]} 25... d4 {[%clk 0:00:32.8]} 26. Nd7 {[%clk 0:01:51.8]}
26... Rd8 {[%clk 0:00:29.4]} 27. Ne5 {[%clk 0:01:49.6]} 27... Bf6 {[%clk
0:00:25.9]} 28. Nd3 {[%clk 0:01:46.4]} 28... Bxd3 {[%clk 0:00:23.2]} 29. Rxd3
{[%clk 0:01:47.3]} 29... e5 {[%clk 0:00:23.5]} 30. f3 {[%clk 0:01:47.5]} 30...
Kf7 {[%clk 0:00:23.6]} 31. Kd1 {[%clk 0:01:40.4]} 31... Ke6 {[%clk 0:00:23.5]}
32. Ke2 {[%clk 0:01:40.4]} 32... Kf5 {[%clk 0:00:22]} 33. Be1 {[%clk 0:01:35.7]}
33... h5 {[%clk 0:00:19.5]} 34. h3 {[%clk 0:01:31.2]} 34... h4 {[%clk
0:00:19.4]} 35. Bd2 {[%clk 0:01:29.5]} 35... e4 {[%clk 0:00:19.2]} 36. fxe4+
{[%clk 0:01:27.8]} 36... Kxe4 {[%clk 0:00:20.1]} 37. Be1 {[%clk 0:01:27.7]}
37... g5 {[%clk 0:00:18.6]} 38. Rf3 {[%clk 0:01:25.4]} 38... d3+ {[%clk
0:00:18.6]} 39. Kd1 {[%clk 0:01:26]} 39... Be5 {[%clk 0:00:17.7]} 40. Bf2 {[%clk
0:01:24.2]} 40... Bd4 {[%clk 0:00:15.5]} 41. Be1 {[%clk 0:01:22.5]} 41... Be3
{[%clk 0:00:15]} 42. Bd2 {[%clk 0:01:20.8]} 42... Bf4 {[%clk 0:00:14.5]} 43. Ba5
{[%clk 0:01:18.9]} 43... Rd7 {[%clk 0:00:13.5]} 44. Be1 {[%clk 0:01:19.2]} 44...
Ra7 {[%clk 0:00:12.4]} 45. Bf2 {[%clk 0:01:19.1]} 45... Rc7 {[%clk 0:00:11.9]}
46. Be1 {[%clk 0:01:16.8]} 46... Rc6 {[%clk 0:00:11.8]} 47. Rf2 {[%clk
0:01:16.6]} 47... Rg6 {[%clk 0:00:10.1]} 48. Rf3 {[%clk 0:01:11.4]} 48... Rg8
{[%clk 0:00:10.2]} 49. Bf2 {[%clk 0:01:10.7]} 49... Rc8 {[%clk 0:00:09.1]} 50.
Bg1 {[%clk 0:01:09.7]} 50... a5 {[%clk 0:00:08.8]} 51. Rf1 {[%clk 0:01:09.3]}
51... a4 {[%clk 0:00:08.6]} 52. Re1+ {[%clk 0:01:09.9]} 52... Kf5 {[%clk
0:00:08.8]} 53. Be3 {[%clk 0:00:43.1]} 53... axb3 {[%clk 0:00:08.7]} 54. axb3
{[%clk 0:00:44]} 54... Rb8 {[%clk 0:00:08.9]} 55. Bxf4 {[%clk 0:00:42.3]} 55...
gxf4 {[%clk 0:00:09.8]} 56. Kd2 {[%clk 0:00:38.9]} 56... Rxb3 {[%clk 0:00:10.3]}
57. Re8 {[%clk 0:00:39.1]} 57... Rb2+ {[%clk 0:00:10.6]} 58. Kxd3 {[%clk
0:00:39.4]} 58... Rxg2 {[%clk 0:00:11.3]} 59. Rf8+ {[%clk 0:00:38.4]} 59... Ke5
{[%clk 0:00:11.5]} 60. Re8+ {[%clk 0:00:38.4]} 60... Kf6 {[%clk 0:00:11.4]} 61.
Rf8+ {[%clk 0:00:36.1]} 61... Ke5 {[%clk 0:00:11.9]} 62. Re8+ {[%clk 0:00:22.5]}
62... Kd6 {[%clk 0:00:11.9]} 63. Rd8+ {[%clk 0:00:19]} 63... Ke7 {[%clk
0:00:11.2]} 64. Rc8 {[%clk 0:00:17.6]} 64... Rg3+ {[%clk 0:00:11.2]} 65. Ke4
{[%clk 0:00:17.6]} 65... Rxh3 {[%clk 0:00:11.8]} 66. Kxf4 {[%clk 0:00:17.4]}
66... Kd6 {[%clk 0:00:11.2]} 67. Rd8+ {[%clk 0:00:17.4]} 67... Kc6 {[%clk
0:00:11]} 68. Rc8+ {[%clk 0:00:17.5]} 68... Kd6 {[%clk 0:00:11.5]} 69. Rd8+
{[%clk 0:00:17.7]} 69... Kc7 {[%clk 0:00:12.1]} 70. Rd5 {[%clk 0:00:17.6]} 70...
Kc6 {[%clk 0:00:12.6]} 71. Rh5 {[%clk 0:00:16.3]} 71... Rc3 {[%clk 0:00:12.8]}
72. Rh6+ {[%clk 0:00:14.4]} 72... Kb7 {[%clk 0:00:12.8]} 73. Ke5 {[%clk
0:00:14.6]} 73... Rxc4 {[%clk 0:00:12.8]} 74. Kd5 {[%clk 0:00:15.3]} 74... Rc1
{[%clk 0:00:11.4]} 75. Rxh4 {[%clk 0:00:15.5]} 75... Kb6 {[%clk 0:00:12]} 76.
Rh8 {[%clk 0:00:13.7]} 76... c4 {[%clk 0:00:10]} 77. Rb8+ {[%clk 0:00:13]} 77...
Ka5 {[%clk 0:00:10.3]} 78. Kd4 {[%clk 0:00:13.3]} 78... Ka4 {[%clk 0:00:07.7]}
79. Rc8 {[%clk 0:00:11.5]} 79... Kb3 {[%clk 0:00:06.9]} 80. Rb8+ {[%clk
0:00:11.9]} 80... Ka3 {[%clk 0:00:07.3]} 81. Ra8+ {[%clk 0:00:11.2]} 81... Kb4
{[%clk 0:00:06.2]} 82. Rb8+ {[%clk 0:00:11.6]} 82... Ka3 {[%clk 0:00:06.5]} 83.
Ra8+ {[%clk 0:00:12]} 83... Kb2 {[%clk 0:00:07.2]} 84. Rb8+ {[%clk 0:00:12.2]}
84... Ka2 {[%clk 0:00:06.9]} 85. Ra8+ {[%clk 0:00:12.3]} 85... Kb1 {[%clk
0:00:07.6]} 86. Rb8+ {[%clk 0:00:12.2]} 86... Kc2 {[%clk 0:00:08.3]} 87. Kxc4
{[%clk 0:00:10.7]} 87... Rb1 {[%clk 0:00:09]} 88. Rxb1 {[%clk 0:00:09.9]} 88...
Kxb1 {[%clk 0:00:09.5]} 1/2-1/2

[Event "Late-Titled-Tuesday-Blitz-February-20-2024"]
[Site "Chess.com"]
[Date "2024.02.20"]
[Round "2"]
[White "Doudou2015"]
[Black "diskeleven"]
[Result "0-1"]
[WhiteElo "2182"]
[BlackElo "2456"]
[TimeControl "180+1"]
[EndTime "14:11:32 PST"]
[Termination "diskeleven won by resignation"]

1. b3 {[%clk 0:02:57.9]} 1... c5 {[%clk 0:02:56]} 2. Bb2 {[%clk 0:02:57.4]} 2...
Nc6 {[%clk 0:02:56.2]} 3. e3 {[%clk 0:02:57.7]} 3... Nf6 {[%clk 0:02:52.2]} 4.
f4 {[%clk 0:02:56.1]} 4... g6 {[%clk 0:02:48]} 5. Nf3 {[%clk 0:02:54.4]} 5...
Bg7 {[%clk 0:02:47.5]} 6. Bd3 {[%clk 0:02:54.9]} 6... O-O {[%clk 0:02:47.5]} 7.
h4 {[%clk 0:02:54.5]} 7... h5 {[%clk 0:02:44.3]} 8. a3 {[%clk 0:02:52.5]} 8...
d6 {[%clk 0:02:44.4]} 9. Nc3 {[%clk 0:02:50.6]} 9... Bg4 {[%clk 0:02:44.3]} 10.
Ne2 {[%clk 0:02:47.5]} 10... Qc7 {[%clk 0:02:36.6]} 11. Ng3 {[%clk 0:02:46.9]}
11... e5 {[%clk 0:02:36.2]} 12. fxe5 {[%clk 0:02:40.2]} 12... dxe5 {[%clk
0:02:36.2]} 13. Be2 {[%clk 0:02:39.8]} 13... e4 {[%clk 0:02:34.3]} 0-1